[Event "Titled Tuesday Blitz February 22 Early 2022"]
[White "Martin, Lewis"]
[Black "Baker, Chris W"]
[WhiteFideId "410551"]
[BlackFideId "401676"]
[WhiteElo "2145"]
[BlackElo "2230"]
[Result "1-0"]
[Round "11"]
[TimeControl "180+1"]
[Date "2022.02.22"]
[WhiteClock "0:01:23"]
[BlackClock "0:00:59"]

1. e4 {[%clk 0:02:59]}  e5 {[%clk 0:02:57]} 2. Nf3 {[%clk 0:02:58]}  Nc6 {[%clk 0:02:57]} 3. Bb5 {[%clk 0:02:58]}  a6 {[%clk 0:02:57]} 4. Ba4 {[%clk 0:02:58]}  Nf6 {[%clk 0:02:58]} 5. O-O {[%clk 0:02:58]}  Be7 {[%clk 0:02:56]} 6. Re1 {[%clk 0:02:58]}  b5 {[%clk 0:02:56]} 7. Bb3 {[%clk 0:02:58]}  O-O {[%clk 0:02:57]} 8. a4 {[%clk 0:02:58]}  Rb8 {[%clk 0:02:54]} 9. axb5 {[%clk 0:02:56]}  axb5 {[%clk 0:02:54]} 10. c3 {[%clk 0:02:57]}  d5 {[%clk 0:02:53]} 11. exd5 {[%clk 0:02:54]}  Nxd5 {[%clk 0:02:53]} 12. Nxe5 {[%clk 0:02:49]}  Nxe5 {[%clk 0:02:53]} 13. Rxe5 {[%clk 0:02:50]}  Bb7 {[%clk 0:02:46]} 14. d4 {[%clk 0:02:49]}  Bd6 {[%clk 0:02:36]} 15. Re1 {[%clk 0:02:45]}  Qh4 {[%clk 0:02:33]} 16. g3 {[%clk 0:02:44]}  Qh3 {[%clk 0:02:33]} 17. f3 {[%clk 0:02:33]}  Rfe8 {[%clk 0:02:20]} 18. Rxe8+ {[%clk 0:02:31]}  Rxe8 {[%clk 0:02:20]} 19. Qf1 {[%clk 0:02:29]}  Qh5 {[%clk 0:02:08]} 20. Na3 {[%clk 0:02:24]}  Ne3 {[%clk 0:01:50]} 21. Bxe3 {[%clk 0:02:23]}  Rxe3 {[%clk 0:01:49]} 22. Nxb5 {[%clk 0:02:20]}  Bxg3 {[%clk 0:01:23]} 23. hxg3 {[%clk 0:02:01]}  Rxf3 {[%clk 0:01:23]} 24. Qg2 {[%clk 0:01:39]}  Qg4 {[%clk 0:01:21]} 25. Bd1 {[%clk 0:01:34]}  Qf5 {[%clk 0:01:00]} 26. Bxf3 {[%clk 0:01:30]}  Bxf3 {[%clk 0:00:59]} 27. Ra8+ {[%clk 0:01:23]} 1-0


[Site "https://www.chess.com"]

[Event "Titled Tuesday Blitz February 22 Early 2022"]
[White "Matveeva, Olga"]
[Black "Zaksaite, Salomeja"]
[WhiteFideId "24107018"]
[BlackFideId "12801496"]
[WhiteElo "2083"]
[BlackElo "2002"]
[Result "0-1"]
[Round "11"]
[TimeControl "180+1"]
[Date "2022.02.22"]
[WhiteClock "0:00:14"]
[BlackClock "0:00:15"]

1. e4 {[%clk 0:03:00]}  c5 {[%clk 0:02:48]} 2. Nf3 {[%clk 0:02:58]}  e6 {[%clk 0:02:48]} 3. g3 {[%clk 0:02:57]}  Nc6 {[%clk 0:02:46]} 4. Bg2 {[%clk 0:02:55]}  d6 {[%clk 0:02:41]} 5. O-O {[%clk 0:02:52]}  Nf6 {[%clk 0:02:41]} 6. Re1 {[%clk 0:02:50]}  Be7 {[%clk 0:02:41]} 7. d4 {[%clk 0:02:49]}  cxd4 {[%clk 0:02:41]} 8. Nxd4 {[%clk 0:02:48]}  Bd7 {[%clk 0:02:41]} 9. c4 {[%clk 0:02:44]}  O-O {[%clk 0:02:40]} 10. Nc3 {[%clk 0:02:41]}  a6 {[%clk 0:02:40]} 11. Nxc6 {[%clk 0:02:28]}  Bxc6 {[%clk 0:02:39]} 12. Qe2 {[%clk 0:02:26]}  Rc8 {[%clk 0:02:38]} 13. b3 {[%clk 0:02:20]}  Qa5 {[%clk 0:02:37]} 14. Bb2 {[%clk 0:02:19]}  b5 {[%clk 0:02:36]} 15. cxb5 {[%clk 0:02:15]}  axb5 {[%clk 0:02:36]} 16. a4 {[%clk 0:01:47]}  bxa4 {[%clk 0:02:22]} 17. bxa4 {[%clk 0:01:44]}  Bd7 {[%clk 0:02:19]} 18. Nb5 {[%clk 0:01:37]}  Rb8 {[%clk 0:02:10]} 19. Bf1 {[%clk 0:01:28]}  Rfc8 {[%clk 0:01:50]} 20. Ra2 {[%clk 0:01:15]}  Bxb5 {[%clk 0:01:40]} 21. Qd1 {[%clk 0:00:51]}  Bxf1 {[%clk 0:01:28]} 22. Kxf1 {[%clk 0:00:52]}  Ng4 {[%clk 0:01:19]} 23. Kg2 {[%clk 0:00:50]}  Ne5 {[%clk 0:01:18]} 24. Bxe5 {[%clk 0:00:47]}  Qxe5 {[%clk 0:01:12]} 25. a5 {[%clk 0:00:47]}  Ra8 {[%clk 0:01:10]} 26. a6 {[%clk 0:00:46]}  Qb5 {[%clk 0:01:03]} 27. a7 {[%clk 0:00:46]}  Qb7 {[%clk 0:01:03]} 28. Qd4 {[%clk 0:00:44]}  Rc5 {[%clk 0:01:01]} 29. h4 {[%clk 0:00:18]}  Rxa7 {[%clk 0:00:52]} 30. Rb1 {[%clk 0:00:17]}  Qxb1 {[%clk 0:00:44]} 31. Rxa7 {[%clk 0:00:17]}  Bf8 {[%clk 0:00:34]} 32. Ra8 {[%clk 0:00:17]}  Qb7 {[%clk 0:00:33]} 33. Qa4 {[%clk 0:00:17]}  Rc8 {[%clk 0:00:30]} 34. Ra7 {[%clk 0:00:15]}  Qc6 {[%clk 0:00:27]} 35. Qd4 {[%clk 0:00:15]}  f5 {[%clk 0:00:25]} 36. Kh2 {[%clk 0:00:15]}  Qxe4 {[%clk 0:00:19]} 37. Qb6 {[%clk 0:00:14]}  Qc6 {[%clk 0:00:18]} 38. Qd4 {[%clk 0:00:14]}  Qc5 {[%clk 0:00:15]} 0-1


[Site "https://www.chess.com"]

[Event "Titled Tuesday Blitz February 22 Early 2022"]
[White "Mohammad Fahad, Rahman"]
[Black "Pinheiro, Iung Alicio de O."]
[WhiteFideId "10207791"]
[BlackFideId "2104350"]
[WhiteElo "2323"]
[BlackElo "2614"]
[Result "1-0"]
[Round "11"]
[TimeControl "180+1"]
[Date "2022.02.22"]
[WhiteClock "0:00:23"]
[BlackClock "0:00:09"]

1. e4 {[%clk 0:03:00]}  c5 {[%clk 0:02:58]} 2. Nf3 {[%clk 0:03:01]}  Nc6 {[%clk 0:02:59]} 3. Bb5 {[%clk 0:02:58]}  e6 {[%clk 0:02:58]} 4. O-O {[%clk 0:02:53]}  Nge7 {[%clk 0:02:58]} 5. Re1 {[%clk 0:02:53]}  Nd4 {[%clk 0:02:59]} 6. Bf1 {[%clk 0:02:51]}  Nec6 {[%clk 0:02:51]} 7. c3 {[%clk 0:02:46]}  Nxf3+ {[%clk 0:02:51]} 8. Qxf3 {[%clk 0:02:47]}  Be7 {[%clk 0:02:42]} 9. Qg3 {[%clk 0:02:43]}  O-O {[%clk 0:02:41]} 10. d4 {[%clk 0:02:32]}  cxd4 {[%clk 0:02:09]} 11. Bh6 {[%clk 0:02:31]}  Bf6 {[%clk 0:01:49]} 12. cxd4 {[%clk 0:02:31]}  Kh8 {[%clk 0:01:46]} 13. e5 {[%clk 0:01:56]}  gxh6 {[%clk 0:01:36]} 14. exf6 {[%clk 0:01:56]}  Qxf6 {[%clk 0:01:35]} 15. d5 {[%clk 0:01:56]}  Nd4 {[%clk 0:01:33]} 16. Qd3 {[%clk 0:01:43]}  Rg8 {[%clk 0:01:22]} 17. Nd2 {[%clk 0:01:33]}  e5 {[%clk 0:01:18]} 18. d6 {[%clk 0:01:27]}  b5 {[%clk 0:01:04]} 19. Qe4 {[%clk 0:01:21]}  Nc6 {[%clk 0:00:52]} 20. Nf3 {[%clk 0:01:14]}  Bb7 {[%clk 0:00:44]} 21. Nxe5 {[%clk 0:01:14]}  Nxe5 {[%clk 0:00:43]} 22. Qxe5 {[%clk 0:01:13]}  Qxe5 {[%clk 0:00:34]} 23. Rxe5 {[%clk 0:01:14]}  a6 {[%clk 0:00:29]} 24. Re7 {[%clk 0:01:11]}  Bc6 {[%clk 0:00:29]} 25. Rxf7 {[%clk 0:01:11]}  Rg6 {[%clk 0:00:29]} 26. Re1 {[%clk 0:01:06]}  Rg7 {[%clk 0:00:24]} 27. Rfe7 {[%clk 0:00:59]}  Rag8 {[%clk 0:00:21]} 28. g3 {[%clk 0:00:59]}  Rg6 {[%clk 0:00:21]} 29. Bd3 {[%clk 0:00:56]}  R6g7 {[%clk 0:00:20]} 30. Bf5 {[%clk 0:00:51]}  Rf8 {[%clk 0:00:19]} 31. Bh3 {[%clk 0:00:43]}  Rgf7 {[%clk 0:00:18]} 32. f4 {[%clk 0:00:38]}  b4 {[%clk 0:00:18]} 33. Kf2 {[%clk 0:00:29]}  Kg7 {[%clk 0:00:17]} 34. Bg4 {[%clk 0:00:27]}  a5 {[%clk 0:00:17]} 35. Bh5 {[%clk 0:00:26]}  Kf6 {[%clk 0:00:05]} 36. Bxf7 {[%clk 0:00:23]}  Rxf7 {[%clk 0:00:06]} 37. Rxf7+ {[%clk 0:00:24]}  Kxf7 {[%clk 0:00:07]} 38. Re7+ {[%clk 0:00:24]}  Kg6 {[%clk 0:00:07]} 39. a3 {[%clk 0:00:25]}  h5 {[%clk 0:00:08]} 40. axb4 {[%clk 0:00:23]}  axb4 {[%clk 0:00:09]} 41. Re5 {[%clk 0:00:22]}  h6 {[%clk 0:00:09]} 42. h4 {[%clk 0:00:22]}  Bb7 {[%clk 0:00:07]} 43. Ke3 {[%clk 0:00:22]}  Bc6 {[%clk 0:00:08]} 44. Kd4 {[%clk 0:00:22]}  Kf6 {[%clk 0:00:07]} 45. Kc5 {[%clk 0:00:22]}  Kg6 {[%clk 0:00:07]} 46. Kxb4 {[%clk 0:00:22]}  Kf6 {[%clk 0:00:08]} 47. Kc5 {[%clk 0:00:22]}  Kg6 {[%clk 0:00:09]} 48. b4 {[%clk 0:00:23]}  Kf6 {[%clk 0:00:09]} 49. Rxh5 {[%clk 0:00:22]}  Kg6 {[%clk 0:00:09]} 50. Re5 {[%clk 0:00:23]}  Kf6 {[%clk 0:00:09]} 51. h5 {[%clk 0:00:23]} 1-0


[Site "https://www.chess.com"]

[Event "Titled Tuesday Blitz February 22 Early 2022"]
[White "Moksh Amit Doshi"]
[Black "Popadic, Dragan"]
[WhiteFideId "25064967"]
[BlackFideId "913650"]
[WhiteElo "2245"]
[BlackElo "2199"]
[Result "1-0"]
[Round "11"]
[TimeControl "180+1"]
[Date "2022.02.22"]
[WhiteClock "0:01:50"]
[BlackClock "0:01:26"]

1. d4 {[%clk 0:02:59]}  Nf6 {[%clk 0:02:59]} 2. c4 {[%clk 0:02:56]}  g6 {[%clk 0:02:58]} 3. f3 {[%clk 0:02:56]}  Bg7 {[%clk 0:02:58]} 4. e4 {[%clk 0:02:56]}  d6 {[%clk 0:02:59]} 5. Nc3 {[%clk 0:02:56]}  O-O {[%clk 0:02:59]} 6. Nge2 {[%clk 0:02:57]}  c5 {[%clk 0:02:57]} 7. d5 {[%clk 0:02:57]}  e6 {[%clk 0:02:57]} 8. Ng3 {[%clk 0:02:58]}  exd5 {[%clk 0:02:57]} 9. cxd5 {[%clk 0:02:59]}  a6 {[%clk 0:02:57]} 10. a4 {[%clk 0:02:56]}  Nbd7 {[%clk 0:02:56]} 11. Be2 {[%clk 0:02:55]}  Ne5 {[%clk 0:02:55]} 12. O-O {[%clk 0:02:54]}  Bd7 {[%clk 0:02:55]} 13. h3 {[%clk 0:02:44]}  b5 {[%clk 0:02:55]} 14. f4 {[%clk 0:02:40]}  Nc4 {[%clk 0:02:54]} 15. b3 {[%clk 0:02:37]}  Ne8 {[%clk 0:02:38]} 16. Qc2 {[%clk 0:02:23]}  b4 {[%clk 0:02:32]} 17. Bxc4 {[%clk 0:02:21]}  Bxc3 {[%clk 0:02:30]} 18. Bb2 {[%clk 0:02:22]}  Bxb2 {[%clk 0:02:23]} 19. Qxb2 {[%clk 0:02:22]}  Qh4 {[%clk 0:02:17]} 20. Qf2 {[%clk 0:02:18]}  Ng7 {[%clk 0:02:15]} 21. e5 {[%clk 0:02:17]}  a5 {[%clk 0:01:52]} 22. Ne4 {[%clk 0:02:11]}  Qxf2+ {[%clk 0:01:49]} 23. Rxf2 {[%clk 0:02:12]}  dxe5 {[%clk 0:01:48]} 24. Nf6+ {[%clk 0:02:11]}  Kh8 {[%clk 0:01:47]} 25. Nxd7 {[%clk 0:02:12]}  Rfd8 {[%clk 0:01:43]} 26. Nxe5 {[%clk 0:02:12]}  Kg8 {[%clk 0:01:43]} 27. d6 {[%clk 0:02:05]}  Ra7 {[%clk 0:01:40]} 28. Rd1 {[%clk 0:02:04]}  Nf5 {[%clk 0:01:40]} 29. d7 {[%clk 0:02:03]}  Kg7 {[%clk 0:01:39]} 30. Bxf7 {[%clk 0:02:00]}  Nd4 {[%clk 0:01:39]} 31. Be8 {[%clk 0:01:56]}  Kf6 {[%clk 0:01:34]} 32. Rfd2 {[%clk 0:01:55]}  g5 {[%clk 0:01:31]} 33. Rxd4 {[%clk 0:01:53]}  cxd4 {[%clk 0:01:31]} 34. Nc6 {[%clk 0:01:53]}  Rdxd7 {[%clk 0:01:30]} 35. Bxd7 {[%clk 0:01:54]}  Rxd7 {[%clk 0:01:29]} 36. Rxd4 {[%clk 0:01:54]}  Rc7 {[%clk 0:01:26]} 37. Nxa5 {[%clk 0:01:52]}  gxf4 {[%clk 0:01:26]} 38. Rxf4+ {[%clk 0:01:49]}  Kg5 {[%clk 0:01:26]} 39. Rxb4 {[%clk 0:01:50]} 1-0


[Site "https://www.chess.com"]

[Event "Titled Tuesday Blitz February 22 Early 2022"]
[White "Moroni, Luca Jr"]
[Black "Carlsson, Ludvig"]
[WhiteFideId "865834"]
[BlackFideId "1727010"]
[WhiteElo "2573"]
[BlackElo "2178"]
[Result "1-0"]
[Round "11"]
[TimeControl "180+1"]
[Date "2022.02.22"]
[WhiteClock "0:01:58"]
[BlackClock "0:00:04"]

1. d4 {[%clk 0:03:00]}  d5 {[%clk 0:02:58]} 2. Bf4 {[%clk 0:03:00]}  c5 {[%clk 0:02:56]} 3. e3 {[%clk 0:03:00]}  Nc6 {[%clk 0:02:56]} 4. Nf3 {[%clk 0:03:01]}  Nf6 {[%clk 0:02:53]} 5. Nbd2 {[%clk 0:03:00]}  cxd4 {[%clk 0:02:50]} 6. exd4 {[%clk 0:03:01]}  Bg4 {[%clk 0:02:48]} 7. c3 {[%clk 0:03:01]}  e6 {[%clk 0:02:49]} 8. Qb3 {[%clk 0:03:01]}  Qc8 {[%clk 0:02:45]} 9. Ne5 {[%clk 0:02:58]}  Nxe5 {[%clk 0:02:42]} 10. Bxe5 {[%clk 0:02:59]}  Nd7 {[%clk 0:02:33]} 11. Bg3 {[%clk 0:02:57]}  Be7 {[%clk 0:02:32]} 12. Bd3 {[%clk 0:02:57]}  Bh5 {[%clk 0:02:32]} 13. O-O {[%clk 0:02:57]}  Bg6 {[%clk 0:02:32]} 14. Bxg6 {[%clk 0:02:52]}  hxg6 {[%clk 0:02:33]} 15. c4 {[%clk 0:02:50]}  dxc4 {[%clk 0:02:31]} 16. Nxc4 {[%clk 0:02:51]}  O-O {[%clk 0:02:20]} 17. Rac1 {[%clk 0:02:50]}  Nf6 {[%clk 0:02:03]} 18. Nb6 {[%clk 0:02:47]}  axb6 {[%clk 0:02:04]} 19. Rxc8 {[%clk 0:02:46]}  Rfxc8 {[%clk 0:02:05]} 20. Qxb6 {[%clk 0:02:44]}  Rxa2 {[%clk 0:02:03]} 21. Qxb7 {[%clk 0:02:41]}  Re8 {[%clk 0:02:01]} 22. b4 {[%clk 0:02:36]}  Nd5 {[%clk 0:01:59]} 23. b5 {[%clk 0:02:36]}  Bf6 {[%clk 0:01:51]} 24. Qc6 {[%clk 0:02:25]}  Rd8 {[%clk 0:01:46]} 25. b6 {[%clk 0:02:20]}  Bxd4 {[%clk 0:01:44]} 26. b7 {[%clk 0:02:19]}  Rb2 {[%clk 0:00:20]} 27. Qc8 {[%clk 0:02:03]}  Rf8 {[%clk 0:00:04]} 28. Bd6 {[%clk 0:01:58]} 1-0


[Site "https://www.chess.com"]

[Event "Titled Tuesday Blitz February 22 Early 2022"]
[White "Murzin, Volodar"]
[Black "Ivanisevic, Ivan"]
[WhiteFideId "44155573"]
[BlackFideId "912417"]
[WhiteElo "2585"]
[BlackElo "2495"]
[Result "1-0"]
[Round "11"]
[TimeControl "180+1"]
[Date "2022.02.22"]
[WhiteClock "0:00:03"]
[BlackClock "0:00:09"]

1. e4 {[%clk 0:03:00]}  c5 {[%clk 0:02:59]} 2. Nf3 {[%clk 0:02:53]}  d6 {[%clk 0:02:59]} 3. Bb5+ {[%clk 0:02:49]}  Bd7 {[%clk 0:02:58]} 4. Bxd7+ {[%clk 0:02:49]}  Nxd7 {[%clk 0:02:58]} 5. O-O {[%clk 0:02:49]}  Ngf6 {[%clk 0:02:58]} 6. Qe2 {[%clk 0:02:49]}  e6 {[%clk 0:02:50]} 7. c3 {[%clk 0:02:48]}  Be7 {[%clk 0:02:47]} 8. d4 {[%clk 0:02:47]}  O-O {[%clk 0:02:48]} 9. Rd1 {[%clk 0:02:45]}  cxd4 {[%clk 0:02:34]} 10. cxd4 {[%clk 0:02:44]}  Qa5 {[%clk 0:02:34]} 11. Nc3 {[%clk 0:02:42]}  Qh5 {[%clk 0:02:32]} 12. e5 {[%clk 0:02:15]}  Ne8 {[%clk 0:01:52]} 13. Bf4 {[%clk 0:02:10]}  Nb6 {[%clk 0:01:43]} 14. d5 {[%clk 0:00:46]}  dxe5 {[%clk 0:01:40]} 15. Bxe5 {[%clk 0:00:47]}  f6 {[%clk 0:01:31]} 16. d6 {[%clk 0:00:32]}  Bd8 {[%clk 0:01:20]} 17. Bd4 {[%clk 0:00:13]}  e5 {[%clk 0:01:19]} 18. Bxb6 {[%clk 0:00:13]}  axb6 {[%clk 0:01:09]} 19. Nb5 {[%clk 0:00:05]}  g6 {[%clk 0:01:01]} 20. d7 {[%clk 0:00:03]}  Ng7 {[%clk 0:00:59]} 21. Qc4+ {[%clk 0:00:04]}  Kh8 {[%clk 0:00:59]} 22. Nd6 {[%clk 0:00:05]}  Nf5 {[%clk 0:00:53]} 23. Nxb7 {[%clk 0:00:03]}  Be7 {[%clk 0:00:49]} 24. Qe6 {[%clk 0:00:02]}  Bd8 {[%clk 0:00:20]} 25. Rac1 {[%clk 0:00:02]}  Ng7 {[%clk 0:00:18]} 26. Qd5 {[%clk 0:00:02]}  Be7 {[%clk 0:00:17]} 27. Rc8 {[%clk 0:00:03]}  Raxc8 {[%clk 0:00:15]} 28. dxc8=Q {[%clk 0:00:03]}  Rxc8 {[%clk 0:00:15]} 29. Qf7 {[%clk 0:00:03]}  Re8 {[%clk 0:00:15]} 30. Rd7 {[%clk 0:00:02]}  Bf8 {[%clk 0:00:11]} 31. Nd6 {[%clk 0:00:01]}  Ra8 {[%clk 0:00:10]} 32. Qd5 {[%clk 0:00:01]}  Rb8 {[%clk 0:00:10]} 33. Nf7+ {[%clk 0:00:01]}  Kg8 {[%clk 0:00:09]} 34. Nh6+ {[%clk 0:00:02]}  Kh8 {[%clk 0:00:09]} 35. Qg8# {[%clk 0:00:03]} 1-0


[Site "https://www.chess.com"]

[Event "Titled Tuesday Blitz February 22 Early 2022"]
[White "Namitbir Singh Walia"]
[Black "Shuvalova, Polina"]
[WhiteFideId "35071068"]
[BlackFideId "24171760"]
[WhiteElo "1479"]
[BlackElo "2355"]
[Result "0-1"]
[Round "11"]
[TimeControl "180+1"]
[Date "2022.02.22"]
[WhiteClock "0:00:07"]
[BlackClock "0:00:34"]

1. d4 {[%clk 0:03:00]}  Nf6 {[%clk 0:02:59]} 2. c4 {[%clk 0:03:00]}  e6 {[%clk 0:02:58]} 3. g3 {[%clk 0:02:59]}  d5 {[%clk 0:02:59]} 4. Bg2 {[%clk 0:02:59]}  Bb4+ {[%clk 0:02:59]} 5. Bd2 {[%clk 0:02:58]}  Be7 {[%clk 0:02:59]} 6. Nf3 {[%clk 0:02:59]}  c6 {[%clk 0:03:00]} 7. O-O {[%clk 0:02:56]}  Nbd7 {[%clk 0:03:00]} 8. Qc2 {[%clk 0:02:54]}  b6 {[%clk 0:03:00]} 9. Bg5 {[%clk 0:02:49]}  Bb7 {[%clk 0:02:59]} 10. Nbd2 {[%clk 0:02:49]}  h6 {[%clk 0:02:56]} 11. Bf4 {[%clk 0:02:45]}  Nh5 {[%clk 0:02:54]} 12. Be3 {[%clk 0:02:42]}  O-O {[%clk 0:02:54]} 13. Ne5 {[%clk 0:02:27]}  Nhf6 {[%clk 0:02:51]} 14. cxd5 {[%clk 0:02:04]}  cxd5 {[%clk 0:02:47]} 15. Nc6 {[%clk 0:02:04]}  Bxc6 {[%clk 0:02:47]} 16. Qxc6 {[%clk 0:02:05]}  Rc8 {[%clk 0:02:47]} 17. Qa4 {[%clk 0:02:04]}  Qc7 {[%clk 0:02:44]} 18. Nb3 {[%clk 0:02:02]}  Qb7 {[%clk 0:02:42]} 19. Rac1 {[%clk 0:01:59]}  Rfd8 {[%clk 0:02:36]} 20. Qb5 {[%clk 0:01:54]}  a6 {[%clk 0:02:33]} 21. Qd3 {[%clk 0:01:53]}  Ne8 {[%clk 0:02:32]} 22. Bf4 {[%clk 0:01:43]}  Nd6 {[%clk 0:02:29]} 23. Nd2 {[%clk 0:01:36]}  Nf6 {[%clk 0:02:25]} 24. h4 {[%clk 0:01:17]}  b5 {[%clk 0:02:22]} 25. Bxd6 {[%clk 0:01:11]}  Bxd6 {[%clk 0:02:21]} 26. Nb3 {[%clk 0:01:11]}  Qb6 {[%clk 0:02:13]} 27. Qd2 {[%clk 0:00:55]}  Rc4 {[%clk 0:02:09]} 28. e3 {[%clk 0:00:39]}  Rdc8 {[%clk 0:02:08]} 29. Rfd1 {[%clk 0:00:36]}  Bb4 {[%clk 0:01:56]} 30. Qd3 {[%clk 0:00:36]}  a5 {[%clk 0:01:54]} 31. a3 {[%clk 0:00:28]}  Bd6 {[%clk 0:01:53]} 32. Qb1 {[%clk 0:00:25]}  Qc7 {[%clk 0:01:41]} 33. Bf1 {[%clk 0:00:24]}  Bxg3 {[%clk 0:01:16]} 34. Bxc4 {[%clk 0:00:22]}  bxc4 {[%clk 0:01:08]} 35. Nd2 {[%clk 0:00:18]}  Bxf2+ {[%clk 0:00:50]} 36. Kxf2 {[%clk 0:00:17]}  Qh2+ {[%clk 0:00:50]} 37. Kf3 {[%clk 0:00:11]}  Qh3+ {[%clk 0:00:48]} 38. Ke2 {[%clk 0:00:08]}  Qg2+ {[%clk 0:00:48]} 39. Ke1 {[%clk 0:00:08]}  Ng4 {[%clk 0:00:44]} 40. Ne4 {[%clk 0:00:08]}  dxe4 {[%clk 0:00:38]} 41. Rd2 {[%clk 0:00:08]}  Qg1+ {[%clk 0:00:35]} 42. Ke2 {[%clk 0:00:08]}  Qf2+ {[%clk 0:00:34]} 43. Kd1 {[%clk 0:00:07]}  Nxe3# {[%clk 0:00:34]} 0-1


[Site "https://www.chess.com"]

[Event "Titled Tuesday Blitz February 22 Early 2022"]
[White "Neiksans, Arturs"]
[Black "Janaszak, Dawid"]
[WhiteFideId "11601388"]
[BlackFideId "1119206"]
[WhiteElo "2447"]
[BlackElo "2199"]
[Result "1/2-1/2"]
[Round "11"]
[TimeControl "180+1"]
[Date "2022.02.22"]
[WhiteClock "0:00:10"]
[BlackClock "0:00:17"]

1. d4 {[%clk 0:03:00]}  Nf6 {[%clk 0:02:59]} 2. Nf3 {[%clk 0:03:01]}  g6 {[%clk 0:02:59]} 3. Bf4 {[%clk 0:03:00]}  Bg7 {[%clk 0:02:59]} 4. e3 {[%clk 0:02:59]}  d6 {[%clk 0:02:59]} 5. h3 {[%clk 0:02:58]}  c5 {[%clk 0:02:57]} 6. Be2 {[%clk 0:02:58]}  Qb6 {[%clk 0:02:55]} 7. Nc3 {[%clk 0:02:55]}  cxd4 {[%clk 0:02:50]} 8. Qxd4 {[%clk 0:02:48]}  Qa5 {[%clk 0:02:29]} 9. O-O {[%clk 0:02:38]}  e5 {[%clk 0:02:13]} 10. Qxd6 {[%clk 0:02:38]}  exf4 {[%clk 0:02:13]} 11. Nb5 {[%clk 0:02:36]}  Na6 {[%clk 0:02:06]} 12. Qe5+ {[%clk 0:02:34]}  Kf8 {[%clk 0:02:00]} 13. Rad1 {[%clk 0:02:12]}  Bd7 {[%clk 0:01:45]} 14. Ng5 {[%clk 0:01:54]}  h6 {[%clk 0:01:22]} 15. Nxf7 {[%clk 0:01:48]}  Re8 {[%clk 0:01:11]} 16. Qxf4 {[%clk 0:01:10]}  Bxb5 {[%clk 0:01:00]} 17. Bxb5 {[%clk 0:00:56]}  Qxb5 {[%clk 0:00:59]} 18. Nxh8 {[%clk 0:00:54]}  Bxh8 {[%clk 0:01:00]} 19. Qxh6+ {[%clk 0:00:54]}  Bg7 {[%clk 0:00:59]} 20. Qxg6 {[%clk 0:00:53]}  Qxb2 {[%clk 0:00:57]} 21. Rd4 {[%clk 0:00:47]}  Qxa2 {[%clk 0:00:51]} 22. Rfd1 {[%clk 0:00:43]}  Qf7 {[%clk 0:00:51]} 23. Qf5 {[%clk 0:00:37]}  b6 {[%clk 0:00:42]} 24. Rf4 {[%clk 0:00:25]}  Nc5 {[%clk 0:00:41]} 25. Rd6 {[%clk 0:00:22]}  Nce4 {[%clk 0:00:38]} 26. Rd4 {[%clk 0:00:20]}  Kg8 {[%clk 0:00:31]} 27. g4 {[%clk 0:00:20]}  Qe6 {[%clk 0:00:26]} 28. Qg6 {[%clk 0:00:16]}  Qf7 {[%clk 0:00:17]} 29. Qf5 {[%clk 0:00:11]}  Qe6 {[%clk 0:00:17]} 30. Qg6 {[%clk 0:00:11]}  Qf7 {[%clk 0:00:17]} 31. Qf5 {[%clk 0:00:10]} 1/2-1/2


[Site "https://www.chess.com"]

[Event "Titled Tuesday Blitz February 22 Early 2022"]
[White "Nesterov, Arseniy"]
[Black "Warchol, Kamil"]
[WhiteFideId "24198455"]
[BlackFideId "21858241"]
[WhiteElo "2489"]
[BlackElo "1905"]
[Result "1-0"]
[Round "11"]
[TimeControl "180+1"]
[Date "2022.02.22"]
[WhiteClock "0:00:47"]
[BlackClock "0:00:03"]

1. d4 {[%clk 0:03:00]}  d6 {[%clk 0:02:59]} 2. c4 {[%clk 0:03:01]}  e5 {[%clk 0:02:56]} 3. d5 {[%clk 0:03:01]}  f5 {[%clk 0:02:54]} 4. e4 {[%clk 0:03:01]}  fxe4 {[%clk 0:02:53]} 5. Nc3 {[%clk 0:03:01]}  Nf6 {[%clk 0:02:52]} 6. Nge2 {[%clk 0:03:00]}  Bf5 {[%clk 0:02:44]} 7. Ng3 {[%clk 0:02:59]}  Bg6 {[%clk 0:02:41]} 8. Bg5 {[%clk 0:02:48]}  Be7 {[%clk 0:02:38]} 9. h4 {[%clk 0:02:40]}  h5 {[%clk 0:02:16]} 10. Bxf6 {[%clk 0:02:11]}  Bxf6 {[%clk 0:02:15]} 11. Ngxe4 {[%clk 0:02:11]}  Bxh4 {[%clk 0:02:12]} 12. Bd3 {[%clk 0:02:10]}  O-O {[%clk 0:01:55]} 13. g3 {[%clk 0:02:06]}  Be7 {[%clk 0:01:54]} 14. Nc5 {[%clk 0:01:57]}  Bxd3 {[%clk 0:01:02]} 15. Ne6 {[%clk 0:01:50]}  Qe8 {[%clk 0:00:56]} 16. Qxd3 {[%clk 0:01:48]}  Rf6 {[%clk 0:00:51]} 17. Nxc7 {[%clk 0:01:46]}  Qd8 {[%clk 0:00:48]} 18. Nxa8 {[%clk 0:01:46]}  Nd7 {[%clk 0:00:46]} 19. Ne4 {[%clk 0:01:31]}  Rh6 {[%clk 0:00:44]} 20. Qf3 {[%clk 0:01:22]}  Qxa8 {[%clk 0:00:40]} 21. Rxh5 {[%clk 0:01:19]}  Rxh5 {[%clk 0:00:37]} 22. Qxh5 {[%clk 0:01:20]}  Qf8 {[%clk 0:00:37]} 23. Qg4 {[%clk 0:01:16]}  Nb6 {[%clk 0:00:34]} 24. Qe6+ {[%clk 0:01:11]}  Qf7 {[%clk 0:00:33]} 25. Qxf7+ {[%clk 0:01:09]}  Kxf7 {[%clk 0:00:34]} 26. b3 {[%clk 0:01:09]}  Nd7 {[%clk 0:00:33]} 27. Ke2 {[%clk 0:01:08]}  g6 {[%clk 0:00:32]} 28. Rh1 {[%clk 0:01:06]}  Kg7 {[%clk 0:00:31]} 29. Kd3 {[%clk 0:01:05]}  b6 {[%clk 0:00:29]} 30. b4 {[%clk 0:01:04]}  Nb8 {[%clk 0:00:26]} 31. a4 {[%clk 0:01:01]}  Na6 {[%clk 0:00:24]} 32. b5 {[%clk 0:00:53]}  Nc7 {[%clk 0:00:23]} 33. a5 {[%clk 0:00:53]}  Ne8 {[%clk 0:00:12]} 34. axb6 {[%clk 0:00:52]}  axb6 {[%clk 0:00:13]} 35. Ra1 {[%clk 0:00:52]}  Kf7 {[%clk 0:00:11]} 36. Ra7 {[%clk 0:00:49]}  Kf8 {[%clk 0:00:09]} 37. Rb7 {[%clk 0:00:49]}  Bd8 {[%clk 0:00:08]} 38. f4 {[%clk 0:00:44]}  exf4 {[%clk 0:00:07]} 39. gxf4 {[%clk 0:00:45]}  Kg8 {[%clk 0:00:05]} 40. Rb8 {[%clk 0:00:44]}  Kf7 {[%clk 0:00:03]} 41. Rxd8 {[%clk 0:00:44]}  Ke7 {[%clk 0:00:04]} 42. Rxe8+ {[%clk 0:00:44]}  Kxe8 {[%clk 0:00:04]} 43. Nxd6+ {[%clk 0:00:45]}  Kd7 {[%clk 0:00:04]} 44. Ne4 {[%clk 0:00:46]}  Ke7 {[%clk 0:00:04]} 45. Kd4 {[%clk 0:00:46]}  Kd7 {[%clk 0:00:04]} 46. Ke5 {[%clk 0:00:46]}  Ke7 {[%clk 0:00:04]} 47. d6+ {[%clk 0:00:47]}  Kd7 {[%clk 0:00:04]} 48. Ng5 {[%clk 0:00:47]}  Kd8 {[%clk 0:00:03]} 49. Ke6 {[%clk 0:00:47]} 1-0


[Site "https://www.chess.com"]